fUSD/lending_fUSD_20240525
["ID","MTS","AMOUNT","RATE_DAILY","PERIOD"]
[327912231,1716618644765,-2369.37,0.0002192,2]
[327912233,1716618644775,-2369.37,0.0002192,2]
[327912235,1716618644784,-2369.37,0.0002192,2]
[327912237,1716618644795,-2369.37,0.0002192,2]
[327912239,1716618644805,-2369.37,0.0002192,2]
[327912241,1716618644815,-150.0,0.00022,3]
[327912243,1716618644824,-154.03121003,0.00022098,2]
[327912245,1716618644834,-677.9,0.000221,2]
[327912247,1716618644844,-624.65,0.000221,2]
[327912249,1716618644854,-6467.51229604,0.00022394,2]
[327912251,1716618644864,-524.8,0.00022493,2]
[327912253,1716618644876,-155.872954,0.000225,3]
[327912255,1716618644891,-327.0,0.000225,5]
[327912257,1716618644902,-219.47923133,0.00022519,2]
[327912260,1716618644912,-160.14420379,0.00022591,2]
[327912262,1716618644923,-154.03121003,0.00022628,2]
[327912263,1716618644933,-417.08257612,0.00022843,2]
[327912266,1716618644943,-1100.0,0.00023,2]
[327912267,1716618644953,-154.03121003,0.0002324,2]
[327912269,1716618644964,-156.667536,0.00023288,7]
[327912271,1716618644974,-2005.79258683,0.000234,2]
[327912273,1716618644984,-154.03121003,0.0002345,2]
[327912275,1716618644994,-1201.13885187,0.00023457,2]
[327912277,1716618645004,-2209.69502427,0.00023588,2]
[327912280,1716618645015,-90044.38210632,0.000236,2]
[327912325,1716618645444,-605.92234491,0.00012702,2]
[327912327,1716618645460,-14.83765509,0.00012702,2]
[327912329,1716618645470,-613.0,0.00015702,2]
[327912331,1716618645480,-613.0,0.00018702,2]
[327912333,1716618645490,-880.127,0.00021702,2]
[327912335,1716618645499,-7194.65177432,0.000236,2]
[327912354,1716618645673,-99075.30936819,0.000236,2]
[327912357,1716618645685,-1261.73122386,0.000236,2]
[327912363,1716618645734,-759.13063438,0.000236,2]
[327912365,1716618645746,-136968.79489293,0.000236,2]
[327912367,1716618645755,-151.0,0.000236,7]
[327912369,1716618645764,-151.0,0.000236,7]
[327912371,1716618645774,-151.0,0.000236,7]
[327912373,1716618645783,-151.0,0.000236,7]
[327912375,1716618645792,-151.0,0.000236,7]
[327912377,1716618645802,-151.0,0.000236,7]
[327912379,1716618645811,-155.165644,0.000236,7]
[327912381,1716618645821,-155.165644,0.000236,7]
[327912383,1716618645830,-168.424934,0.000236,7]
[327912385,1716618645839,-151.0,0.000236,7]
[327912387,1716618645848,-151.0,0.000236,7]
[327912389,1716618645858,-151.0,0.000236,7]
[327912391,1716618645868,-151.0,0.000236,7]
[327912394,1716618645878,-234.682462,0.000236,7]
[327912397,1716618645891,-234.682462,0.000236,7]
[327912400,1716618645900,-159.541642,0.000236,7]
[327912402,1716618645909,-159.541642,0.000236,7]
[327912404,1716618645919,-174.794094,0.000236,7]
[327912406,1716618645929,-174.794094,0.000236,7]
[327912408,1716618645938,-151.0,0.000236,7]
[327912410,1716618645948,-172.339868,0.000236,7]
[327912412,1716618645958,-172.339868,0.000236,7]
[327912414,1716618645967,-154.252276,0.000236,7]
[327912416,1716618645976,-1164.696475,0.000236,7]
[327912418,1716618645986,-1164.696475,0.000236,7]
[327912420,1716618645995,-151.0,0.000236,7]
[327912422,1716618646005,-271.320216,0.000236,7]
[327912424,1716618646014,-151.0,0.000236,7]
[327912426,1716618646024,-156.580383,0.000236,7]
[327912428,1716618646033,-151.0,0.000236,7]
[327912430,1716618646043,-156.580383,0.000236,7]
[327912432,1716618646053,-6076.52152459,0.00024,3]
[327912434,1716618646062,-1175.720042,0.00024,15]
[327912436,1716618646071,-150.0,0.00024,2]
[327912438,1716618646081,-180.0,0.0002423,2]
[327912440,1716618646090,-224.869,0.00024247,2]
[327912442,1716618646099,-37920.0,0.00024247,2]
[327912444,1716618646109,-677.9,0.000243,2]
[327912446,1716618646120,-624.65,0.000243,2]
[327912448,1716618646129,-850.91141457,0.00024402,2]
[327912450,1716618646138,-1552.32261964,0.00024402,2]
[327912452,1716618646148,-158.25798016,0.00024467,2]
[327912454,1716618646157,-530.12481834,0.000245,3]
[327912456,1716618646166,-6467.51229604,0.00024561,2]
[327912458,1716618646176,-160.14420379,0.00024655,2]
[327912460,1716618646185,-151.0,0.00024658,7]
[327912462,1716618646194,-151.0,0.00024658,7]
[327912464,1716618646203,-151.0,0.00024658,7]
[327912466,1716618646213,-151.0,0.00024658,7]
[327912468,1716618646222,-151.0,0.00024658,7]
[327912470,1716618646231,-151.0,0.00024658,7]
[327912472,1716618646240,-4643.715316,0.000247,2]
[327912474,1716618646250,-524.8,0.00024757,2]
[327912476,1716618646259,-150.0,0.00024999,2]
[327912478,1716618646269,-190.56914058,0.00025,2]
[327912480,1716618646278,-1150.0,0.00025,2]
[327912482,1716618646288,-944520.00717094,0.00025,2]
[327912484,1716618646300,-138539.31241154,0.00025,2]
[327912520,1716618646742,-163.6,0.00019068,2]
[327912522,1716618646752,-20468.9,0.00025,2]
[327912594,1716618647447,-159.96803053,0.00015369,2]
[327912596,1716618647457,-2645.64854358,0.00025,2]
[327912729,1716618649611,382.59431954,0.00010019,2]
[327912730,1716618653449,180.28989834,0.00010019,2]
[327912731,1716618657572,362.34453967,0.00010019,2]
[327912732,1716618667585,18123.4318611,0.00010019,2]
[327912733,1716618669462,216.34150401,0.00010019,2]
[327912734,1716618711930,19730.13627126,0.00010019,2]
[327912735,1716618713993,211.26,0.00031,120]
[327912736,1716618717502,364.87792406,0.00010019,2]
[327912738,1716618769595,178.17367127,0.00010019,2]
[327912739,1716618791602,44058.21488382,0.00010019,2]
[327912742,1716618814229,1031.276592,0.00031,120]
[327912743,1716618824283,1000.0,0.00031,120]
[327912744,1716618831926,19741.49598061,0.00010019,2]
[327912745,1716618885947,226.93675887,0.00010019,2]
[327912754,1716619090272,-643.9738315,0.00010994,2]
[327912755,1716619090294,-1273.86928001,0.00010995,2]
[327912756,1716619090320,-4634.09688289,0.00011,2]
[327912757,1716619090342,-339.39203307,0.00011999,2]
[327912758,1716619090364,-500.0,0.00012797,2]
[327912759,1716619090385,-156.77330223,0.00012998,2]
[327912760,1716619090407,-2187.63741095,0.00012998,2]
[327912761,1716619090429,-3721.66553585,0.00012998,2]
[327912762,1716619090451,-4432.22618101,0.00012998,2]
[327912763,1716619090472,-755.6187192,0.00012998,2]
[327912764,1716619090494,-270.78309239,0.00012998,2]
[327912765,1716619090517,-2220.0136269,0.00012999,2]
[327912766,1716619090542,-7619418.48740722,0.00013,2]
[327912767,1716619090565,-2350578.38260199,0.00013,2]
[327912768,1716619106739,271.51362645,0.00012869,2]
[327912769,1716619116616,2606.36410029,0.0001274,2]
[327912770,1716619118650,39210.6002,0.000129,2]
[327912771,1716619134611,2606.36410029,0.0001274,2]
[327912772,1716619150619,2606.36410029,0.0001274,2]
[327912773,1716619153147,19509.74370795,0.00010993,2]
[327912774,1716619165398,1386.6682,0.000129,2]
[327912775,1716619168605,2606.36410029,0.00012,2]
[327912776,1716619169165,1000.0,0.000129,2]
[327912777,1716619184607,2254.15454709,0.00012,2]
[327912778,1716619217958,1000.0,0.000129,2]
[327912779,1716619230448,2500.0,0.000129,2]
[327912780,1716619311060,685255.0,0.0003,30]
[327912781,1716619471173,23900.0,0.00012946,2]
[327912783,1716619493976,500.0,0.00012933,2]
[327912784,1716619503097,19741.49598061,0.00012946,2]
[327912785,1716619519185,19730.13627126,0.00012946,2]
[327912787,1716619544064,150.0,0.00012705,2]
[327912788,1716619555559,5547.88,0.00012705,2]
[327912789,1716619573295,200.0,0.00012705,2]
[327912790,1716619580790,250.0,0.00012608,2]
[327912793,1716619643703,170.95,0.00012585,2]
[327912800,1716619673062,156.51,0.00012661,2]
[327912801,1716619683583,506.71,0.0001077,2]
[327912802,1716619698871,162.76,0.00031,120]
[327912837,1716619832278,-179.94587404,0.00013031,2]
[327912839,1716619832287,-845.04378217,0.00013031,2]
[327912882,1716619838073,-428.82549784,0.00013031,2]
[327912884,1716619838083,-867.68165163,0.00013032,2]
[327912886,1716619838094,-506.71,0.00013034,2]
[327912888,1716619838103,-3670.022,0.00013266,2]
[327912890,1716619838112,-3651.672,0.00013286,2]
[327912891,1716619838121,-3685.382,0.00013316,2]
[327912893,1716619838131,-3616.845,0.0001336,2]
[327912895,1716619838140,-3624.288,0.00013426,2]
[327912897,1716619838149,-3710.658,0.00013452,2]
[327912899,1716619838158,-5800.0,0.00013452,2]
[327912900,1716619838168,-5800.0,0.00013461,2]
[327912902,1716619838180,-5800.0,0.00013469,2]
[327912903,1716619838189,-5800.0,0.00013478,2]
[327912905,1716619838198,-3744.435,0.00013481,2]
[327912907,1716619838207,-5800.0,0.00013486,2]
[327912908,1716619838216,-5800.0,0.00013495,2]
[327912910,1716619838225,-375.37431858,0.00013496,2]
[327912912,1716619838235,-5800.0,0.00013503,2]
[327912913,1716619838244,-5800.0,0.00013512,2]
[327912915,1716619838253,-3737.979,0.00013514,2]
[327912917,1716619838262,-5800.0,0.0001352,2]
[327912918,1716619838272,-16000.0,0.00013529,2]
[327912920,1716619838281,-5800.0,0.00013529,2]
[327912922,1716619838290,-5800.0,0.00013537,2]
[327912923,1716619838299,-16000.0,0.00013537,2]
[327912924,1716619838309,-58000.0,0.00013537,2]
[327912925,1716619838318,-3625.26,0.00013596,2]
[327912926,1716619838327,-961.7453,0.000136,2]
[327912927,1716619838336,-3629.447,0.00013645,2]
[327912928,1716619838345,-2751.0,0.00013699,2]
[327912929,1716619838354,-500.0,0.00013699,2]
[327912930,1716619838363,-1094.5,0.00013699,2]
[327912931,1716619838372,-3665.219,0.000137,2]
[327912932,1716619838382,-3653.326,0.00013762,2]
[327912933,1716619838392,-499.99,0.00013773,2]
[327912934,1716619838402,-3658.495,0.00013829,2]
[327912935,1716619838411,-3703.118,0.0001391,2]
[327912936,1716619838420,-200.0,0.00013939,2]
[327912937,1716619838430,-191.48,0.00013973,2]
[327912938,1716619838439,-157.38,0.00013973,2]
[327912939,1716619838448,-193.34,0.00013973,2]
[327912940,1716619838457,-1230.6383,0.000141,2]
[327912941,1716619838467,-347.82332452,0.00014199,2]
[327912942,1716619838477,-7121.52646669,0.00014199,2]
[327912943,1716619838487,-976.573,0.000142,2]
[327912944,1716619838496,-1264.0,0.000142,2]
[327912945,1716619838506,-470.94,0.000142,2]
[327912946,1716619838515,-1644.0,0.000142,2]
[327912947,1716619838527,-1225.0,0.000142,2]
[327912948,1716619838536,-447.311,0.000142,2]
[327912949,1716619838545,-164.0,0.000142,2]
[327912950,1716619838554,-150.498,0.000142,2]
[327912951,1716619838564,-2397.0,0.000142,2]
[327912952,1716619838575,-810.0,0.000142,2]
[327912953,1716619838585,-150.964,0.000142,2]
[327912954,1716619838595,-1138.0,0.000142,2]
[327912955,1716619838604,-218.0,0.000142,2]
[327912956,1716619838614,-1650.0,0.000142,2]
[327912957,1716619838623,-3176.155,0.000142,2]
[327912958,1716619838633,-2226.634,0.000142,2]
[327912959,1716619838643,-5762.0,0.000142,2]
[327912960,1716619838654,-37920.0,0.000142,2]
[327912961,1716619838664,-150.133,0.000142,2]
[327912962,1716619838674,-150.103,0.000142,2]
[327912963,1716619838683,-250.0,0.00014444,2]
[327912964,1716619838692,-180.55,0.0001484,2]
[327912965,1716619838701,-2500.0,0.000149,2]
[327912966,1716619838712,-1933.48314628,0.00014968,2]
[327912967,1716619838723,-428.66255048,0.00014999,2]
[327912968,1716619838732,-619.31575855,0.00015,2]
[327912969,1716619838741,-257.8324195,0.00015,2]
[327912970,1716619838751,-155.0,0.00015,2]
[327912971,1716619838760,-200.0,0.00015,2]
[327912972,1716619838770,-5900.0,0.00015,2]
[327912973,1716619838779,-62212.99105888,0.00015,2]
[327912974,1716619838788,-300.0,0.00015068,2]
[327912975,1716619838798,-506.71,0.00015297,2]
[327912976,1716619838807,-5547.88,0.00015445,2]
[327912977,1716619838817,-820.0,0.000156,2]
[327912978,1716619838827,-225.3704,0.000157,2]
[327912979,1716619838837,-172.33,0.00015722,2]
[327912980,1716619838846,-5636.0,0.000158,2]
[327912981,1716619838857,-167.0,0.00015831,2]
[327912982,1716619838868,-187.26,0.00015831,2]
[327912983,1716619838878,-1000.0,0.00015908,2]
[327912984,1716619838888,-375.3743185,0.0001593,2]
[327912985,1716619838897,-1000.0,0.00016016,2]
[327912986,1716619838906,-5616.33,0.00016116,2]
[327912987,1716619838917,-308.00943843,0.00016328,2]
[327912988,1716619838931,-167.0,0.00016354,2]
[327912989,1716619838941,-300.0,0.00016438,2]
[327912990,1716619838951,-5951.57,0.00016438,2]
[327912991,1716619838960,-1227.82126936,0.000165,2]
[327912992,1716619838971,-171.3,0.00016524,2]
[327912993,1716619838980,-179.69,0.00016712,2]
[327912994,1716619838990,-167.0,0.00016876,2]
[327912995,1716619839000,-166.64757043,0.000169,2]
[327912996,1716619839010,-39210.6002,0.000169,2]
[327912997,1716619839019,-5083.27432854,0.00017,2]
[327912998,1716619839030,-150.81658681,0.00017,2]
[327912999,1716619839039,-187.26,0.00017137,2]
[327913000,1716619839049,-1264.0,0.000172,2]
[327913001,1716619839059,-440.0,0.000172,2]
[327913002,1716619839068,-1644.0,0.000172,2]
[327913003,1716619839078,-1225.0,0.000172,2]
[327913004,1716619839088,-155.726,0.000172,2]
[327913005,1716619839097,-150.0,0.000172,2]
[327913006,1716619839107,-1349.909,0.000172,2]
[327913007,1716619839116,-361.773,0.000172,2]
[327913008,1716619839126,-150.0,0.000172,2]
[327913009,1716619839135,-1138.0,0.000172,2]
[327913010,1716619839145,-215.0,0.000172,2]
[327913011,1716619839154,-1650.0,0.000172,2]
[327913012,1716619839164,-3164.0,0.000172,2]
[327913013,1716619839174,-714.892,0.000172,2]
[327913014,1716619839183,-37920.0,0.000172,2]
[327913015,1716619839192,-150.0,0.000172,2]
[327913016,1716619839202,-167.0,0.00017399,2]
[327913017,1716619839212,-364.48178666,0.00017456,2]
[327913018,1716619839222,-506.71,0.00017561,2]
[327913019,1716619839232,-1933.48314623,0.00017671,2]
[327913020,1716619839242,-1000.0,0.00017897,2]
[327913021,1716619839251,-167.0,0.00017921,2]
[327913022,1716619839261,-804.30557965,0.00018,2]
[327913023,1716619839271,-5547.88,0.00018185,2]
[327913024,1716619839281,-375.3743185,0.00018364,2]
[327913025,1716619839291,-167.0,0.00018444,2]
[327913026,1716619839301,-187.26,0.00018444,2]
[327913027,1716619839310,-500.0,0.00018848,2]
[327913028,1716619839320,-200.0,0.00018848,2]
[327913029,1716619839330,-155.2637372,0.00019,2]
[327913030,1716619839340,-1094.5,0.00019178,2]
[327913031,1716619839349,-171.3,0.00019278,2]
[327913032,1716619839359,-506.71,0.00019825,2]
[327913033,1716619839369,-1000.0,0.00019885,2]
[327913034,1716619839379,-4572.89041199,0.000199,3]
[327913035,1716619839388,-811.11187339,0.0002,2]
[327913036,1716619839398,-6242.82236079,0.0002,2]
[327913037,1716619839409,-5189.03261963,0.0002,2]
[327913038,1716619839419,-155.0,0.0002,4]
[327913039,1716619839430,-291.28965664,0.0002,2]
[327913040,1716619839440,-158.57592294,0.0002,2]
[327913041,1716619839450,-155.0,0.0002,2]
[327913042,1716619839460,-458.06978826,0.0002,2]
[327913043,1716619839470,-1472.55039844,0.0002,4]
[327913044,1716619839480,-3742.15099099,0.0002,2]
[327913045,1716619839490,-6653.0,0.0002,2]
[327913046,1716619839500,-3958.06878433,0.0002,2]
[327913047,1716619839509,-3950.0,0.0002,2]
[327913048,1716619839519,-2562.42303804,0.0002,2]
[327913049,1716619839529,-1401.0,0.0002,2]
[327913050,1716619839539,-263.53335922,0.0002,2]
[327913051,1716619839549,-263.53335922,0.0002,2]
[327913052,1716619839559,-500.0,0.00020197,2]
[327913053,1716619839569,-500.0,0.00020197,2]
[327913054,1716619839579,-632.88089841,0.00020197,2]
[327913055,1716619839590,-500.0,0.00020197,2]
[327913056,1716619839600,-500.0,0.00020197,2]
[327913057,1716619839610,-500.0,0.00020197,2]
[327913058,1716619839622,-500.0,0.00020197,2]
[327913059,1716619839632,-428.67910979,0.00020197,2]
[327913060,1716619839641,-500.0,0.00020197,2]
[327913061,1716619839651,-500.0,0.00020197,2]
[327913062,1716619839661,-500.0,0.00020197,2]
[327913063,1716619839670,-500.0,0.00020197,2]
[327913064,1716619839681,-500.0,0.00020197,2]
[327913065,1716619839691,-500.0,0.00020197,2]
[327913066,1716619839701,-500.0,0.00020197,2]
[327913067,1716619839711,-500.0,0.00020197,2]
[327913068,1716619839721,-500.0,0.00020197,2]
[327913069,1716619839731,-500.0,0.00020197,2]
[327913070,1716619839741,-500.0,0.00020197,2]
[327913071,1716619839752,-500.0,0.00020197,2]
[327913072,1716619839762,-500.0,0.00020197,2]
[327913073,1716619839772,-500.0,0.00020197,2]
[327913074,1716619839781,-500.0,0.00020197,2]
[327913075,1716619839791,-500.0,0.00020197,2]
[327913076,1716619839800,-500.0,0.00020197,2]
[327913077,1716619839810,-500.0,0.00020197,2]
[327913078,1716619839819,-1022.645,0.000202,2]
[327913079,1716619839829,-440.0,0.000202,2]
[327913080,1716619839839,-150.0,0.000202,2]
[327913081,1716619839849,-1138.0,0.000202,2]
[327913082,1716619839859,-215.0,0.000202,2]
[327913083,1716619839869,-356.801,0.000202,2]
[327913084,1716619839879,-37920.0,0.000202,2]
[327913085,1716619839889,-1933.48314623,0.00020374,2]
[327913086,1716619839898,-193.34,0.00020447,2]
[327913087,1716619839908,-375.3743185,0.00020797,2]
[327913088,1716619839918,-5514.19481281,0.00021,2]
[327913089,1716619839933,-1437.4086983,0.00021,2]
[327913090,1716619839943,-1050.0,0.00021,2]
[327913091,1716619839953,-19636.47058133,0.000216,2]
[327913092,1716619839963,-1000.0,0.00021874,2]
[327913093,1716619839974,-404.63,0.00021918,2]
[327913094,1716619839983,-250.0,0.00021918,2]
[327913095,1716619839993,-788.11263962,0.00022,2]
[327913096,1716619840004,-171.3,0.00022032,2]
[327913097,1716619840014,-506.71,0.00022089,2]
[327913098,1716619840024,-154.03121003,0.00022121,2]
[327913099,1716619840034,-282.1196435,0.00022159,2]
[327913100,1716619840044,-154.90619897,0.00022218,2]
[327913101,1716619840054,-154.03121003,0.00022269,2]
[327913102,1716619840064,-160.14420379,0.0002237,2]
[327913103,1716619840073,-753.21042176,0.00022498,2]
[327913104,1716619840083,-159.5916392,0.00022633,2]
[327913105,1716619840093,-1100.0,0.00023,2]
[327913106,1716619840103,-1933.48314623,0.00023077,2]
[327913107,1716619840112,-160.14420379,0.00023168,2]
[327913108,1716619840121,-160.14420379,0.00023173,2]
[327913109,1716619840131,-3325.806,0.000232,2]
[327913110,1716619840141,-375.3743185,0.00023231,2]
[327913111,1716619840151,-2005.79258683,0.000234,2]
[327913112,1716619840161,-1201.13885187,0.00023457,2]
[327913113,1716619840170,-90044.38210632,0.000236,2]
[327913114,1716619840181,-154.03121003,0.00023679,2]
[327913115,1716619840191,-1000.0,0.00023862,2]
[327913116,1716619840201,-765.09,0.000239,4]
[327913117,1716619840211,-154.03121003,0.00023938,2]
[327913118,1716619840221,-154.03121003,0.00024005,2]
[327913119,1716619840231,-180.0,0.0002423,2]
[327913120,1716619840242,-506.71,0.00024353,2]
[327913121,1716619840252,-154.03121003,0.00024541,2]
[327913122,1716619840262,-154.03121003,0.00024645,2]
[327913123,1716619840272,-219.47923133,0.00024675,2]
[327913124,1716619840282,-153.30685889,0.00024691,2]
[327913125,1716619840291,-2671.96931,0.0002475,2]
[327913126,1716619840300,-170.13432,0.0002475,2]
[327913127,1716619840311,-171.3,0.00024785,2]
[327913128,1716619840320,-505.6273792,0.000248,2]
[327913129,1716619840329,-150.0,0.00024876,2]
[327913130,1716619840339,-327.02252959,0.00024898,2]
[327913131,1716619840350,-237.48860909,0.00024898,2]
[327913132,1716619840359,-4748.08552782,0.00024899,2]
[327913133,1716619840370,-99203.7228,0.000249,2]
[327913134,1716619840379,-63472.1847,0.000249,2]
[327913135,1716619840389,-115328.05317618,0.000249,2]
[327913136,1716619840413,-577.67556287,0.000249,2]
[327913137,1716619840426,-13892.96737,0.000249,2]
[327913150,1716619841285,-694.63902191,0.000249,2]
[327913152,1716619841298,-545.93510686,0.000249,2]
[327913170,1716619843399,-57.26385247,0.00013699,2]
[327913181,1716619843477,-142.73614753,0.00013699,2]
[327913183,1716619843486,-150.151,0.000142,2]
[327913185,1716619843495,-205.91285227,0.000249,2]
[327913187,1716619843506,-4650.0,0.000249,2]
[327913198,1716619843591,-3050.0,0.000249,2]
[327913208,1716619844057,-3558.45,0.000249,2]
[327913215,1716619846329,-4871.44945435,0.000249,2]
[327913216,1716619846557,-3046.99026357,0.000249,2]
[327913222,1716620679568,580.16,0.00011119,2]
[327913223,1716620712296,250.0,0.00012818,2]
[327913228,1716620865779,23900.0,0.00012694,2]
[327913243,1716621032423,-1230.6383,0.00013338,2]
[327913244,1716621032433,-375.37431858,0.00013378,2]
[327913245,1716621032442,-580.16,0.00013382,2]
[327913246,1716621032452,-2380.81676912,0.00013428,2]
[327913247,1716621032463,-7128.50874756,0.00013428,2]
[327913248,1716621032475,-7260.12434325,0.00013428,2]
[327913249,1716621032537,-822.25490068,0.00013428,2]
[327913250,1716621032546,-2804.382,0.00013429,2]
[327913251,1716621032555,-1000.0,0.00013429,2]
[327913252,1716621032564,-2500.0,0.00013429,2]
[327913253,1716621032573,-428.66255048,0.00013436,2]
[327913254,1716621032582,-347.82332452,0.00013436,2]
[327913255,1716621032592,-364.48178666,0.00013436,2]
[327913256,1716621032601,-308.00943843,0.00013437,2]
[327913257,1716621032610,-499.99,0.00013437,2]
[327913258,1716621032619,-197.56699091,0.00013437,2]
[327913259,1716621032631,-3491.73700909,0.00013437,2]
[327913260,1716621032640,-4028.51086601,0.00013437,2]
[327913261,1716621032651,-1607.29170079,0.00013437,2]
[327913262,1716621032662,-469.02406266,0.00013437,2]
[327913263,1716621032673,-1016.69983723,0.00013437,2]
[327913264,1716621032682,-2860.849,0.00013438,2]
[327913265,1716621032693,-1719.95453507,0.00013438,2]
[327913266,1716621035060,250.0,0.00012682,2]
[327913272,1716621038595,-98280.04546493,0.00013438,2]
[327913274,1716621038605,-3715.616,0.00013438,2]
[327913276,1716621038614,-1933.48314628,0.00013438,2]
[327913277,1716621038623,-5800.0,0.00013452,2]
[327913278,1716621038632,-5800.0,0.00013461,2]
[327913279,1716621038641,-5800.0,0.00013469,2]
[327913280,1716621038650,-5800.0,0.00013478,2]
[327913281,1716621038659,-3823.05,0.00013483,2]
[327913282,1716621038668,-5800.0,0.00013486,2]
[327913283,1716621038677,-5800.0,0.00013495,2]
[327913284,1716621038687,-5800.0,0.00013503,2]
[327913285,1716621038697,-5800.0,0.00013512,2]
[327913287,1716621038707,-3688.012,0.00013513,2]
[327913289,1716621038716,-5800.0,0.0001352,2]
[327913291,1716621038726,-16000.0,0.00013529,2]
[327913293,1716621038735,-5800.0,0.00013529,2]
[327913294,1716621038745,-16000.0,0.00013537,2]
[327913295,1716621038756,-58000.0,0.00013537,2]
[327913296,1716621038766,-5800.0,0.00013537,2]
[327913297,1716621038776,-16000.0,0.00013537,2]
[327913298,1716621038786,-58000.0,0.00013537,2]
[327913299,1716621038794,-1094.5,0.00013699,2]
[327913300,1716621038804,-200.0,0.00013699,2]
[327913301,1716621038818,-2751.0,0.00013699,2]
[327913302,1716621038827,-183.93,0.00013973,2]
[327913303,1716621038838,-154.96,0.00013973,2]
[327913304,1716621038848,-2226.634,0.00014182,2]
[327913305,1716621038858,-5762.0,0.00014182,2]
[327913306,1716621038867,-37920.0,0.00014182,2]
[327913307,1716621038876,-182.639,0.000142,2]
[327913308,1716621038885,-299.398,0.000142,2]
[327913309,1716621038897,-150.226,0.000142,2]
[327913310,1716621038909,-150.249,0.000142,2]
[327913311,1716621038919,-976.573,0.000142,2]
[327913312,1716621038928,-1264.0,0.000142,2]
[327913313,1716621038937,-1644.0,0.000142,2]
[327913314,1716621038947,-1225.0,0.000142,2]
[327913315,1716621038956,-470.94,0.000142,2]
[327913316,1716621038966,-810.0,0.000142,2]
[327913317,1716621038975,-447.311,0.000142,2]
[327913318,1716621038984,-2397.0,0.000142,2]
[327913319,1716621038993,-164.0,0.000142,2]
[327913320,1716621039002,-150.498,0.000142,2]
[327913321,1716621039012,-150.964,0.000142,2]
[327913322,1716621039022,-218.0,0.000142,2]
[327913323,1716621039031,-1650.0,0.000142,2]
[327913324,1716621039041,-1138.0,0.000142,2]
[327913325,1716621039050,-3176.155,0.000142,2]
[327913326,1716621039060,-500.0,0.00014389,2]
[327913327,1716621039070,-150.0,0.00014719,2]
[327913328,1716621039079,-619.31575855,0.00015,2]
[327913329,1716621039089,-155.0,0.00015,2]
[327913330,1716621039099,-200.0,0.00015,2]
[327913331,1716621039109,-257.8324195,0.00015,2]
[327913332,1716621039119,-5900.0,0.00015,2]
[327913333,1716621039128,-300.0,0.00015068,2]
[327913334,1716621039137,-5636.0,0.000156,2]
[327913335,1716621039146,-580.16,0.00015646,2]
[327913336,1716621039156,-375.3743185,0.00015825,2]
[327913337,1716621039166,-187.26,0.00015831,2]
[327913338,1716621039176,-5616.33,0.00016116,2]
[327913339,1716621039185,-3823.05,0.00016222,2]
[327913340,1716621039196,-1933.48314623,0.00016435,2]
[327913341,1716621039205,-300.0,0.00016438,2]
[327913342,1716621039215,-1227.82126936,0.000165,2]
[327913343,1716621039224,-179.69,0.00016712,2]
[327913344,1716621039234,-5083.27432854,0.00017,2]
[327913345,1716621039243,-187.26,0.00017137,2]
[327913346,1716621039252,-800.0,0.00017178,2]
[327913347,1716621039261,-714.892,0.00017182,2]
[327913348,1716621039271,-37920.0,0.00017182,2]